[Event "*** SCC Grand Prix: Titled Tuesday Blitz"]
[Site "Chess.com"]
[Date "2020.06.09"]
[Round "5"]
[White "alexsergeyev"]
[Black "nihalsarin"]
[Result "0-1"]
[WhiteElo "2364"]
[BlackElo "2985"]
[TimeControl "180+1"]
[EndTime "9:56:38 PDT"]
[Termination "nihalsarin won on time"]

1. d4 {[%clk 0:03:00.9]} 1... Nf6 {[%clk 0:03:00.1]} 2. c4 {[%clk 0:03:00.2]}
2... g6 {[%clk 0:03:00.6]} 3. Nc3 {[%clk 0:02:59.6]} 3... Bg7 {[%clk 0:03:01.1]}
4. Nf3 {[%clk 0:02:57.9]} 4... O-O {[%clk 0:03:01]} 5. e4 {[%clk 0:02:56.9]}
5... d6 {[%clk 0:03:01.3]} 6. Be2 {[%clk 0:02:56.9]} 6... e5 {[%clk 0:03:01.4]}
7. O-O {[%clk 0:02:57.4]} 7... Nc6 {[%clk 0:03:01.5]} 8. d5 {[%clk 0:02:54.7]}
8... Ne7 {[%clk 0:03:01.1]} 9. b4 {[%clk 0:02:52.1]} 9... a5 {[%clk 0:03:01.2]}
10. Ba3 {[%clk 0:02:50.3]} 10... Re8 {[%clk 0:02:53.6]} 11. bxa5 {[%clk
0:02:48.7]} 11... Rxa5 {[%clk 0:02:46.3]} 12. Bb4 {[%clk 0:02:47.8]} 12... Ra8
{[%clk 0:02:46.8]} 13. c5 {[%clk 0:02:44.7]} 13... dxc5 {[%clk 0:02:47.7]} 14.
Bxc5 {[%clk 0:02:43.5]} 14... c6 {[%clk 0:02:48.6]} 15. d6 {[%clk 0:02:36.3]}
15... Qa5 {[%clk 0:02:45.9]} 16. Rc1 {[%clk 0:01:26.5]} 16... Qxc5 {[%clk
0:01:24.7]} 17. Nb5 {[%clk 0:01:25.1]} 17... Qb4 {[%clk 0:01:24.7]} 18. Nc7
{[%clk 0:01:24]} 18... Rd8 {[%clk 0:01:25]} 19. Nxa8 {[%clk 0:01:11]} 19... Rxd6
{[%clk 0:01:22.1]} 20. Qb3 {[%clk 0:00:57.7]} 20... Qxb3 {[%clk 0:01:22.2]} 21.
axb3 {[%clk 0:00:56.9]} 21... Nxe4 {[%clk 0:01:22.4]} 22. Rfd1 {[%clk
0:00:48.2]} 22... Nd5 {[%clk 0:01:04.4]} 23. Bc4 {[%clk 0:00:44]} 23... Be6
{[%clk 0:01:03.7]} 24. h4 {[%clk 0:00:30.8]} 24... h6 {[%clk 0:00:42.5]} 25. Re1
{[%clk 0:00:17]} 25... f5 {[%clk 0:00:35.4]} 26. Rcd1 {[%clk 0:00:16.6]} 26...
Nec3 {[%clk 0:00:30.6]} 27. Rd2 {[%clk 0:00:13.4]} 27... e4 {[%clk 0:00:26]} 28.
Nd4 {[%clk 0:00:12.2]} 28... Bf7 {[%clk 0:00:25]} 29. f3 {[%clk 0:00:02.4]}
29... Nf4 {[%clk 0:00:15.7]} 0-1

[Event "*** SCC Grand Prix: Titled Tuesday Blitz"]
[Site "Chess.com"]
[Date "2020.06.09"]
[Round "5"]
[White "Arjun2002"]
[Black "mjray79"]
[Result "1-0"]
[WhiteElo "2645"]
[BlackElo "2309"]
[TimeControl "180+1"]
[EndTime "9:56:40 PDT"]
[Termination "Arjun2002 won on time"]

1. e4 {[%clk 0:03:00.9]} 1... e5 {[%clk 0:02:59.8]} 2. Nf3 {[%clk 0:03:01.1]}
2... Nc6 {[%clk 0:03:00.2]} 3. Bc4 {[%clk 0:02:59.2]} 3... Bc5 {[%clk
0:02:59.4]} 4. c3 {[%clk 0:02:59]} 4... Nf6 {[%clk 0:02:59.6]} 5. d3 {[%clk
0:02:59.6]} 5... O-O {[%clk 0:02:58.5]} 6. O-O {[%clk 0:03:00.1]} 6... d5 {[%clk
0:02:58.4]} 7. exd5 {[%clk 0:02:59.4]} 7... Nxd5 {[%clk 0:02:59.3]} 8. Re1
{[%clk 0:02:59.9]} 8... Bg4 {[%clk 0:02:57.8]} 9. Nbd2 {[%clk 0:03:00.1]} 9...
Nb6 {[%clk 0:02:56.7]} 10. h3 {[%clk 0:02:59.4]} 10... Bh5 {[%clk 0:02:52]} 11.
Bb3 {[%clk 0:02:58.2]} 11... Bd6 {[%clk 0:02:49]} 12. Ne4 {[%clk 0:02:46.6]}
12... Bg6 {[%clk 0:02:46]} 13. Be3 {[%clk 0:02:20.6]} 13... Kh8 {[%clk
0:02:43.4]} 14. Nxd6 {[%clk 0:02:16.1]} 14... cxd6 {[%clk 0:02:36.3]} 15. d4
{[%clk 0:02:16.2]} 15... Bh5 {[%clk 0:02:25.9]} 16. g4 {[%clk 0:02:12.4]} 16...
Bg6 {[%clk 0:02:24.6]} 17. dxe5 {[%clk 0:02:11]} 17... dxe5 {[%clk 0:02:23.7]}
18. Qxd8 {[%clk 0:02:04.9]} 18... Raxd8 {[%clk 0:02:24.6]} 19. Bxb6 {[%clk
0:02:05.2]} 19... axb6 {[%clk 0:02:23.6]} 20. Nxe5 {[%clk 0:02:06.1]} 20... Nxe5
{[%clk 0:02:20.4]} 21. Rxe5 {[%clk 0:02:07]} 21... Rd2 {[%clk 0:02:18.8]} 22.
Rb5 {[%clk 0:02:04.5]} 22... Rxb2 {[%clk 0:02:12.4]} 23. Rxb6 {[%clk 0:02:04.3]}
23... Be4 {[%clk 0:02:08.4]} 24. Re1 {[%clk 0:01:59.4]} 24... Bc6 {[%clk
0:02:05.9]} 25. Rb4 {[%clk 0:01:59.2]} 25... h5 {[%clk 0:02:00.6]} 26. g5 {[%clk
0:01:55.4]} 26... g6 {[%clk 0:01:52.7]} 27. Rf4 {[%clk 0:01:52.5]} 27... Kg7
{[%clk 0:01:50.3]} 28. Re7 {[%clk 0:01:48.1]} 28... Rb1+ {[%clk 0:01:49.9]} 29.
Kh2 {[%clk 0:01:48.2]} 29... Rh1+ {[%clk 0:01:49.7]} 30. Kg3 {[%clk 0:01:48.5]}
30... Rg1+ {[%clk 0:01:46.3]} 31. Kh4 {[%clk 0:01:48.1]} 31... Be8 {[%clk
0:01:38.5]} 32. Rxb7 {[%clk 0:01:39.8]} 32... Kh8 {[%clk 0:01:15.4]} 33. Bxf7
{[%clk 0:01:28.8]} 33... Bc6 {[%clk 0:01:15.1]} 34. Rbb4 {[%clk 0:01:21]} 34...
Kg7 {[%clk 0:01:07.8]} 35. Bxg6 {[%clk 0:01:17.7]} 35... Rd8 {[%clk 0:00:42.2]}
36. Bxh5 {[%clk 0:01:09.3]} 36... Rg8 {[%clk 0:00:22.7]} 37. Rb6 {[%clk
0:00:56.2]} 37... Bd5 {[%clk 0:00:20.2]} 38. Rg6+ {[%clk 0:00:54]} 38... Kh7
{[%clk 0:00:18.9]} 39. Rh6+ {[%clk 0:00:51.6]} 39... Kg7 {[%clk 0:00:18.3]} 40.
c4 {[%clk 0:00:51.8]} 40... Rh8 {[%clk 0:00:03.3]} 41. Rxh8 {[%clk 0:00:46.5]}
41... Kxh8 {[%clk 0:00:02.9]} 42. cxd5 {[%clk 0:00:46.6]} 42... Kg7 {[%clk
0:00:03.8]} 43. d6 {[%clk 0:00:45.2]} 43... Rd1 {[%clk 0:00:04]} 44. Rf6 {[%clk
0:00:45.2]} 44... Rd3 {[%clk 0:00:02.4]} 45. Bg4 {[%clk 0:00:42.2]} 1-0

[Event "*** SCC Grand Prix: Titled Tuesday Blitz"]
[Site "Chess.com"]
[Date "2020.06.09"]
[Round "5"]
[White "ehrenfeld"]
[Black "ZAbdumalik"]
[Result "0-1"]
[WhiteElo "2509"]
[BlackElo "2735"]
[TimeControl "180+1"]
[EndTime "9:56:41 PDT"]
[Termination "ZAbdumalik won on time"]

1. e4 {[%clk 0:03:00.9]} 1... c5 {[%clk 0:02:56.9]} 2. d3 {[%clk 0:03:00.7]}
2... e6 {[%clk 0:02:56]} 3. f4 {[%clk 0:03:00.5]} 3... Nc6 {[%clk 0:02:54.5]} 4.
Nf3 {[%clk 0:02:59.5]} 4... g6 {[%clk 0:02:52.6]} 5. Be2 {[%clk 0:02:59.1]} 5...
Bg7 {[%clk 0:02:52.8]} 6. O-O {[%clk 0:02:58.9]} 6... Nge7 {[%clk 0:02:53.3]} 7.
c3 {[%clk 0:02:59.1]} 7... d6 {[%clk 0:02:44.5]} 8. Be3 {[%clk 0:02:57.2]} 8...
O-O {[%clk 0:02:44.4]} 9. d4 {[%clk 0:02:56.9]} 9... b6 {[%clk 0:02:39.5]} 10.
Na3 {[%clk 0:02:54.2]} 10... Bb7 {[%clk 0:02:37.6]} 11. dxc5 {[%clk 0:02:53.3]}
11... dxc5 {[%clk 0:02:25.1]} 12. Qc2 {[%clk 0:02:52.9]} 12... a6 {[%clk
0:02:22.3]} 13. Nc4 {[%clk 0:02:51.9]} 13... Qc7 {[%clk 0:02:20.3]} 14. a4
{[%clk 0:02:50]} 14... Rfd8 {[%clk 0:02:02.5]} 15. Qb3 {[%clk 0:02:49.2]} 15...
Nc8 {[%clk 0:01:46.7]} 16. f5 {[%clk 0:02:48.8]} 16... exf5 {[%clk 0:01:39.7]}
17. exf5 {[%clk 0:02:46.6]} 17... Re8 {[%clk 0:01:37.2]} 18. fxg6 {[%clk
0:02:35.7]} 18... hxg6 {[%clk 0:01:36.6]} 19. Ng5 {[%clk 0:02:03.2]} 19... Re7
{[%clk 0:01:28.5]} 20. Bf4 {[%clk 0:01:38.3]} 20... Qd8 {[%clk 0:01:21.8]} 21.
Rad1 {[%clk 0:01:26.3]} 21... Qe8 {[%clk 0:01:11.6]} 22. Bf3 {[%clk 0:01:08.5]}
22... Na5 {[%clk 0:01:08.2]} 23. Nxa5 {[%clk 0:01:05.8]} 23... Bxf3 {[%clk
0:01:07.8]} 24. Rxf3 {[%clk 0:01:03.5]} 24... bxa5 {[%clk 0:01:07.9]} 25. Qd5
{[%clk 0:00:30.7]} 25... Nb6 {[%clk 0:01:04.9]} 26. Qxc5 {[%clk 0:00:26]} 26...
Nxa4 {[%clk 0:01:04.6]} 27. Qf2 {[%clk 0:00:25.1]} 27... f6 {[%clk 0:00:53.1]}
28. Nh3 {[%clk 0:00:15.3]} 28... Re2 {[%clk 0:00:53.1]} 29. Qg3 {[%clk
0:00:11.5]} 29... Nxb2 {[%clk 0:00:50.3]} 30. Rdf1 {[%clk 0:00:10.3]} 30... Rd8
{[%clk 0:00:47.5]} 31. Bc1 {[%clk 0:00:07.9]} 31... Rd1 {[%clk 0:00:45.2]} 32.
Bxb2 {[%clk 0:00:06]} 32... Rxf1+ {[%clk 0:00:44.8]} 33. Rxf1 {[%clk 0:00:05.7]}
33... Rxb2 {[%clk 0:00:44.4]} 34. Nf4 {[%clk 0:00:05.8]} 34... g5 {[%clk
0:00:39.3]} 35. Re1 {[%clk 0:00:05.6]} 35... Qb8 {[%clk 0:00:25.4]} 36. Ne6
{[%clk 0:00:01.4]} 36... Qxg3 {[%clk 0:00:24.9]} 37. hxg3 {[%clk 0:00:01.6]}
37... a4 {[%clk 0:00:24.8]} 38. Rd1 {[%clk 0:00:01.6]} 38... a3 {[%clk
0:00:21.8]} 0-1

[Event "*** SCC Grand Prix: Titled Tuesday Blitz"]
[Site "Chess.com"]
[Date "2020.06.09"]
[Round "5"]
[White "Kimster98"]
[Black "KaterinaMiroshnik"]
[Result "0-1"]
[WhiteElo "2562"]
[BlackElo "2426"]
[TimeControl "180+1"]
[EndTime "9:56:41 PDT"]
[Termination "KaterinaMiroshnik won by resignation"]

1. Nf3 {[%clk 0:02:36.6]} 1... e6 {[%clk 0:02:59.2]} 2. c4 {[%clk 0:02:37.5]}
2... d5 {[%clk 0:02:59.2]} 3. g3 {[%clk 0:02:38.4]} 3... Nf6 {[%clk 0:02:59.1]}
4. Bg2 {[%clk 0:02:39.3]} 4... dxc4 {[%clk 0:02:59.3]} 5. Qa4+ {[%clk
0:02:39.3]} 5... Nbd7 {[%clk 0:02:57.8]} 6. Qxc4 {[%clk 0:02:39.5]} 6... a6
{[%clk 0:02:58.7]} 7. Qb3 {[%clk 0:02:34.3]} 7... Be7 {[%clk 0:02:56.1]} 8. O-O
{[%clk 0:02:34.3]} 8... c5 {[%clk 0:02:55.7]} 9. a4 {[%clk 0:02:32.5]} 9... O-O
{[%clk 0:02:51.8]} 10. Nc3 {[%clk 0:02:32]} 10... Qc7 {[%clk 0:02:46.6]} 11. d3
{[%clk 0:02:26.8]} 11... b6 {[%clk 0:02:43.2]} 12. Bf4 {[%clk 0:02:18.6]} 12...
Qa7 {[%clk 0:02:39.6]} 13. Ne5 {[%clk 0:01:54.5]} 13... Bb7 {[%clk 0:02:26.1]}
14. Nc6 {[%clk 0:01:54.2]} 14... Bxc6 {[%clk 0:02:26.4]} 15. Bxc6 {[%clk
0:01:55.1]} 15... Rad8 {[%clk 0:02:26.5]} 16. Rfd1 {[%clk 0:01:45.2]} 16... e5
{[%clk 0:02:25.8]} 17. Bg5 {[%clk 0:01:36.2]} 17... h6 {[%clk 0:02:24.4]} 18.
Bd2 {[%clk 0:01:36.3]} 18... Nb8 {[%clk 0:02:23.7]} 19. Bg2 {[%clk 0:01:34.6]}
19... Nbd7 {[%clk 0:02:20.8]} 20. Qc4 {[%clk 0:01:24.8]} 20... Rfe8 {[%clk
0:02:15.2]} 21. Nd5 {[%clk 0:01:18.3]} 21... Nf8 {[%clk 0:02:08.1]} 22. Nxe7+
{[%clk 0:01:15.8]} 22... Rxe7 {[%clk 0:02:09]} 23. Bc3 {[%clk 0:01:12]} 23... a5
{[%clk 0:01:55]} 24. h3 {[%clk 0:00:55.3]} 24... Qc7 {[%clk 0:01:55.2]} 25. f4
{[%clk 0:00:49.4]} 25... N8d7 {[%clk 0:01:50.3]} 26. f5 {[%clk 0:00:49.5]} 26...
Nb8 {[%clk 0:01:48.4]} 27. e3 {[%clk 0:00:37.5]} 27... Nc6 {[%clk 0:01:47.1]}
28. Be4 {[%clk 0:00:37.8]} 28... Nxe4 {[%clk 0:01:41.1]} 29. dxe4 {[%clk
0:00:38.7]} 29... Red7 {[%clk 0:01:37.4]} 30. Rd5 {[%clk 0:00:37.8]} 30... Rxd5
{[%clk 0:01:19.1]} 31. exd5 {[%clk 0:00:38.7]} 31... Ne7 {[%clk 0:01:15.6]} 32.
e4 {[%clk 0:00:38.8]} 32... Nc8 {[%clk 0:01:15.7]} 33. Re1 {[%clk 0:00:30.7]}
33... f6 {[%clk 0:01:12.6]} 34. b3 {[%clk 0:00:29.4]} 34... Nd6 {[%clk
0:01:12.1]} 35. Qe2 {[%clk 0:00:29.4]} 35... Rc8 {[%clk 0:01:09.7]} 36. Rc1
{[%clk 0:00:28.7]} 36... Kf7 {[%clk 0:01:06.8]} 37. Bb2 {[%clk 0:00:23.7]} 37...
Kg8 {[%clk 0:01:05.9]} 38. Qd3 {[%clk 0:00:20.3]} 38... Qf7 {[%clk 0:01:05.6]}
39. g4 {[%clk 0:00:20.1]} 39... Kh7 {[%clk 0:01:05.4]} 40. Kf2 {[%clk
0:00:20.2]} 40... g6 {[%clk 0:01:04.4]} 41. Kf3 {[%clk 0:00:20.2]} 41... gxf5
{[%clk 0:01:03.7]} 42. gxf5 {[%clk 0:00:20.3]} 42... Qh5+ {[%clk 0:01:03.5]} 43.
Kf2 {[%clk 0:00:20.4]} 43... Rg8 {[%clk 0:01:02.4]} 44. Rg1 {[%clk 0:00:19]}
44... Qh4+ {[%clk 0:00:56.5]} 45. Kf1 {[%clk 0:00:18.4]} 45... Qf4+ {[%clk
0:00:51.5]} 46. Ke2 {[%clk 0:00:17.6]} 46... Rxg1 {[%clk 0:00:50.6]} 47. Qf3
{[%clk 0:00:18]} 47... Qh2+ {[%clk 0:00:45.5]} 0-1

[Event "*** SCC Grand Prix: Titled Tuesday Blitz"]
[Site "Chess.com"]
[Date "2020.06.09"]
[Round "5"]
[White "Charlottemillard17"]
[Black "AcsinteMatei"]
[Result "0-1"]
[WhiteElo "1503"]
[BlackElo "2318"]
[TimeControl "180+1"]
[EndTime "9:56:41 PDT"]
[Termination "AcsinteMatei won on time"]

1. e4 {[%clk 0:03:00.9]} 1... c6 {[%clk 0:02:58.9]} 2. d4 {[%clk 0:02:58.7]}
2... d5 {[%clk 0:02:59.8]} 3. e5 {[%clk 0:02:58.5]} 3... g6 {[%clk 0:02:59.2]}
4. f4 {[%clk 0:02:56]} 4... h5 {[%clk 0:02:58.5]} 5. Nf3 {[%clk 0:02:52.9]} 5...
Bg4 {[%clk 0:02:57.7]} 6. Be2 {[%clk 0:02:51.9]} 6... e6 {[%clk 0:02:57.6]} 7.
h3 {[%clk 0:02:50.4]} 7... Bxf3 {[%clk 0:02:57.3]} 8. Bxf3 {[%clk 0:02:50.2]}
8... c5 {[%clk 0:02:58.2]} 9. O-O {[%clk 0:02:38.6]} 9... Nc6 {[%clk 0:02:56.4]}
10. c3 {[%clk 0:02:37.1]} 10... Qb6 {[%clk 0:02:55.6]} 11. Qa4 {[%clk
0:01:49.7]} 11... cxd4 {[%clk 0:02:52.4]} 12. cxd4 {[%clk 0:01:48]} 12... Qxd4+
{[%clk 0:02:51.4]} 13. Qxd4 {[%clk 0:01:44.7]} 13... Nxd4 {[%clk 0:02:52.3]} 14.
Be3 {[%clk 0:01:43.3]} 14... Nxf3+ {[%clk 0:02:50.9]} 15. Rxf3 {[%clk
0:01:44.2]} 15... Ne7 {[%clk 0:02:51.3]} 16. Nc3 {[%clk 0:01:42.9]} 16... Nc6
{[%clk 0:02:51.1]} 17. Nb5 {[%clk 0:01:39.4]} 17... Kd7 {[%clk 0:02:47.6]} 18.
Rc1 {[%clk 0:01:33.8]} 18... Bb4 {[%clk 0:02:39.2]} 19. a3 {[%clk 0:01:30.4]}
19... a6 {[%clk 0:02:33]} 20. axb4 {[%clk 0:01:06.6]} 20... axb5 {[%clk
0:02:32.2]} 21. Rc5 {[%clk 0:00:48.1]} 21... Ra4 {[%clk 0:02:16.3]} 22. Rxb5
{[%clk 0:00:18.7]} 22... Rxb4 {[%clk 0:02:10.3]} 23. Rxb4 {[%clk 0:00:18.2]}
23... Nxb4 {[%clk 0:02:11.2]} 24. Bc5 {[%clk 0:00:18.3]} 24... Na6 {[%clk
0:02:04.6]} 25. Bd4 {[%clk 0:00:18.4]} 25... Rc8 {[%clk 0:02:02]} 26. Rb3 {[%clk
0:00:18.1]} 26... Rc1+ {[%clk 0:02:01.8]} 27. Kh2 {[%clk 0:00:17.3]} 27... Kc6
{[%clk 0:01:56.3]} 28. Rc3+ {[%clk 0:00:16.5]} 28... Rxc3 {[%clk 0:01:55.8]} 29.
bxc3 {[%clk 0:00:17.4]} 29... Kb5 {[%clk 0:01:53.8]} 30. g4 {[%clk 0:00:17.5]}
30... hxg4 {[%clk 0:01:52.1]} 31. hxg4 {[%clk 0:00:18.4]} 31... Kc4 {[%clk
0:01:52.7]} 32. Kg3 {[%clk 0:00:18.5]} 32... Nc5 {[%clk 0:01:53.2]} 33. f5
{[%clk 0:00:16.6]} 33... gxf5 {[%clk 0:01:50.6]} 34. gxf5 {[%clk 0:00:17.5]}
34... Ne4+ {[%clk 0:01:48.2]} 35. Kf4 {[%clk 0:00:14]} 35... Nxc3 {[%clk
0:01:48.8]} 36. Bxc3 {[%clk 0:00:11.3]} 36... Kxc3 {[%clk 0:01:48.8]} 37. fxe6
{[%clk 0:00:11.4]} 37... fxe6 {[%clk 0:01:49.7]} 38. Kg5 {[%clk 0:00:11.5]}
38... d4 {[%clk 0:01:48.7]} 39. Kf6 {[%clk 0:00:12.1]} 39... d3 {[%clk
0:01:49.3]} 40. Kxe6 {[%clk 0:00:12.8]} 40... d2 {[%clk 0:01:49.6]} 41. Kf7
{[%clk 0:00:13.4]} 41... d1=Q {[%clk 0:01:49.8]} 42. e6 {[%clk 0:00:13.4]} 42...
Qf3+ {[%clk 0:01:49.5]} 43. Ke8 {[%clk 0:00:12.1]} 43... Qc6+ {[%clk 0:01:48.8]}
44. Ke7 {[%clk 0:00:11.9]} 44... b5 {[%clk 0:01:48.6]} 45. Kf7 {[%clk
0:00:11.8]} 45... Qd5 {[%clk 0:01:48.7]} 46. Kf6 {[%clk 0:00:11.4]} 46... Qd6
{[%clk 0:01:48.5]} 47. Kf7 {[%clk 0:00:10.9]} 47... Qf4+ {[%clk 0:01:48.1]} 48.
Ke7 {[%clk 0:00:10.5]} 48... b4 {[%clk 0:01:48.1]} 49. Kd7 {[%clk 0:00:10.4]}
49... Qd4+ {[%clk 0:01:46.8]} 50. Ke8 {[%clk 0:00:09]} 50... b3 {[%clk
0:01:41.8]} 51. e7 {[%clk 0:00:08.9]} 51... b2 {[%clk 0:01:41.8]} 52. Kf7 {[%clk
0:00:08.6]} 52... Qd7 {[%clk 0:01:40.6]} 53. Kf8 {[%clk 0:00:06.8]} 53... Qd6
{[%clk 0:01:40.4]} 54. Kf7 {[%clk 0:00:05.7]} 54... Qf4+ {[%clk 0:01:40.9]} 55.
Ke8 {[%clk 0:00:02.5]} 55... b1=Q {[%clk 0:01:40.2]} 56. Kd8 {[%clk 0:00:03]}
56... Qbb8+ {[%clk 0:01:39.4]} 57. Kd7 {[%clk 0:00:02.6]} 57... Qbd6+ {[%clk
0:01:39.9]} 58. Ke8 {[%clk 0:00:02.4]} 58... Qc6+ {[%clk 0:01:39.6]} 59. Kd8
{[%clk 0:00:01.8]} 59... Qf7 {[%clk 0:01:34.7]} 0-1

[Event "*** SCC Grand Prix: Titled Tuesday Blitz"]
[Site "Chess.com"]
[Date "2020.06.09"]
[Round "5"]
[White "publicaccountcze"]
[Black "Synctel"]
[Result "1-0"]
[WhiteElo "2243"]
[BlackElo "1906"]
[TimeControl "180+1"]
[EndTime "9:56:41 PDT"]
[Termination "publicaccountcze won by resignation"]

1. e4 {[%clk 0:03:00.9]} 1... e6 {[%clk 0:02:42.2]} 2. d3 {[%clk 0:03:00.1]}
2... d5 {[%clk 0:02:40.4]} 3. Qe2 {[%clk 0:03:00.1]} 3... Be7 {[%clk 0:02:39.1]}
4. Nf3 {[%clk 0:02:58.8]} 4... Nf6 {[%clk 0:02:36]} 5. g3 {[%clk 0:02:59]} 5...
dxe4 {[%clk 0:02:29.4]} 6. dxe4 {[%clk 0:02:58.9]} 6... O-O {[%clk 0:02:23.3]}
7. Bg2 {[%clk 0:02:58.6]} 7... b6 {[%clk 0:02:23.7]} 8. O-O {[%clk 0:02:57.4]}
8... Ba6 {[%clk 0:02:20.8]} 9. c4 {[%clk 0:02:57.1]} 9... Bb7 {[%clk 0:02:19.6]}
10. Nc3 {[%clk 0:02:56.1]} 10... Nc6 {[%clk 0:02:13.2]} 11. e5 {[%clk
0:02:53.4]} 11... Nd7 {[%clk 0:02:11.6]} 12. Rd1 {[%clk 0:02:52.7]} 12... Qc8
{[%clk 0:02:11.9]} 13. Bf4 {[%clk 0:02:52]} 13... Rd8 {[%clk 0:01:53.2]} 14. h4
{[%clk 0:02:51.3]} 14... a5 {[%clk 0:01:40.5]} 15. h5 {[%clk 0:02:49.2]} 15...
h6 {[%clk 0:01:37.8]} 16. Nh2 {[%clk 0:02:34.4]} 16... Nc5 {[%clk 0:01:34]} 17.
Ng4 {[%clk 0:02:31.6]} 17... Bf8 {[%clk 0:01:33.8]} 18. Bxh6 {[%clk 0:01:43.4]}
18... gxh6 {[%clk 0:01:33.2]} 19. Nf6+ {[%clk 0:01:43.2]} 19... Kh8 {[%clk
0:01:30.1]} 20. Qc2 {[%clk 0:01:33.1]} 20... Nd3 {[%clk 0:01:01.7]} 21. Rxd3
{[%clk 0:01:28]} 21... Nb4 {[%clk 0:01:01.2]} 22. Rxd8 {[%clk 0:00:28.2]} 22...
Nxc2 {[%clk 0:01:00.5]} 23. Rxc8 {[%clk 0:00:28.4]} 23... Rxc8 {[%clk 0:00:57]}
24. Bxb7 {[%clk 0:00:27.9]} 24... Nxa1 {[%clk 0:00:50.3]} 25. Bxc8 {[%clk
0:00:27.5]} 25... Nc2 {[%clk 0:00:45.1]} 26. Nb5 {[%clk 0:00:23.4]} 26... c6
{[%clk 0:00:37.8]} 27. Na7 {[%clk 0:00:22.8]} 27... Nd4 {[%clk 0:00:35.3]} 28.
Nd7 {[%clk 0:00:22]} 28... Bc5 {[%clk 0:00:22.6]} 29. Nxc5 {[%clk 0:00:21.4]}
29... bxc5 {[%clk 0:00:23.5]} 30. f4 {[%clk 0:00:21.4]} 30... Kg7 {[%clk
0:00:15.6]} 31. Bd7 {[%clk 0:00:21.3]} 31... f6 {[%clk 0:00:16.1]} 32. Nxc6
{[%clk 0:00:20.8]} 32... fxe5 {[%clk 0:00:15.9]} 33. Nxd4 {[%clk 0:00:20.5]}
33... exd4 {[%clk 0:00:15.5]} 34. Kf2 {[%clk 0:00:20.8]} 34... Kf6 {[%clk
0:00:16.1]} 35. Ke2 {[%clk 0:00:20]} 35... Ke7 {[%clk 0:00:16.7]} 36. Bc6 {[%clk
0:00:19.7]} 36... Kd6 {[%clk 0:00:17]} 37. Be4 {[%clk 0:00:19.8]} 37... e5
{[%clk 0:00:17]} 38. f5 {[%clk 0:00:19.9]} 38... Ke7 {[%clk 0:00:16.8]} 39. Kd3
{[%clk 0:00:18.9]} 39... Kf6 {[%clk 0:00:17.7]} 40. g4 {[%clk 0:00:17.4]} 40...
Kg5 {[%clk 0:00:17.7]} 41. a3 {[%clk 0:00:17.3]} 41... Kxg4 {[%clk 0:00:17.7]}
42. f6 {[%clk 0:00:17]} 42... Kxh5 {[%clk 0:00:16.3]} 43. f7 {[%clk 0:00:17.9]}
43... Kg4 {[%clk 0:00:16.4]} 44. f8=Q {[%clk 0:00:18]} 44... h5 {[%clk
0:00:17.3]} 1-0

[Event "*** SCC Grand Prix: Titled Tuesday Blitz"]
[Site "Chess.com"]
[Date "2020.06.09"]
[Round "5"]
[White "praveenb2002"]
[Black "Andreikka"]
[Result "0-1"]
[WhiteElo "2757"]
[BlackElo "2910"]
[TimeControl "180+1"]
[EndTime "9:56:42 PDT"]
[Termination "Andreikka won by resignation"]

1. e4 {[%clk 0:02:45]} 1... d5 {[%clk 0:02:59.1]} 2. exd5 {[%clk 0:02:45]} 2...
Qxd5 {[%clk 0:02:59.5]} 3. Nc3 {[%clk 0:02:43.8]} 3... Qa5 {[%clk 0:03:00]} 4.
d4 {[%clk 0:02:43.4]} 4... Nf6 {[%clk 0:03:00.2]} 5. Nf3 {[%clk 0:02:43.2]} 5...
c6 {[%clk 0:03:00.6]} 6. Bc4 {[%clk 0:02:41.2]} 6... Bf5 {[%clk 0:03:00.9]} 7.
Bd2 {[%clk 0:02:36.8]} 7... e6 {[%clk 0:03:00.5]} 8. Qe2 {[%clk 0:02:37.5]} 8...
Qc7 {[%clk 0:02:55.1]} 9. O-O-O {[%clk 0:02:35.5]} 9... Nbd7 {[%clk 0:02:55]}
10. Ne5 {[%clk 0:02:35.6]} 10... h5 {[%clk 0:02:54.7]} 11. Kb1 {[%clk
0:02:28.6]} 11... Bd6 {[%clk 0:02:47.6]} 12. Rhe1 {[%clk 0:02:25.6]} 12... Nb6
{[%clk 0:02:46.2]} 13. Bb3 {[%clk 0:02:25.3]} 13... O-O-O {[%clk 0:02:44.6]} 14.
h3 {[%clk 0:02:12.4]} 14... h4 {[%clk 0:02:28.4]} 15. Bg5 {[%clk 0:01:58.9]}
15... Kb8 {[%clk 0:02:18.9]} 16. Qf3 {[%clk 0:01:52.8]} 16... Nbd5 {[%clk
0:02:09]} 17. Ng4 {[%clk 0:01:18.7]} 17... Nxc3+ {[%clk 0:01:57]} 18. Qxc3
{[%clk 0:01:19.6]} 18... Ne4 {[%clk 0:01:56.8]} 19. Rxe4 {[%clk 0:01:12.1]}
19... Bxe4 {[%clk 0:01:56.7]} 20. Bxd8 {[%clk 0:01:12.8]} 20... Rxd8 {[%clk
0:01:57.1]} 21. f3 {[%clk 0:01:13.4]} 21... Bf5 {[%clk 0:01:56.1]} 22. Bc4
{[%clk 0:01:08]} 22... Qb6 {[%clk 0:01:45.4]} 23. a3 {[%clk 0:01:00.8]} 23...
Bc5 {[%clk 0:01:37.1]} 24. Bb3 {[%clk 0:00:15.6]} 24... Bxd4 {[%clk 0:01:32.4]}
25. Qc4 {[%clk 0:00:16]} 25... Rd6 {[%clk 0:01:16.3]} 26. Ka2 {[%clk 0:00:13.7]}
26... Qd8 {[%clk 0:01:15.5]} 27. Nh2 {[%clk 0:00:13.4]} 27... Be5 {[%clk
0:00:56]} 28. Rxd6 {[%clk 0:00:12.5]} 28... Qxd6 {[%clk 0:00:56.6]} 29. Ng4
{[%clk 0:00:13.2]} 29... Bd4 {[%clk 0:00:51.1]} 30. Qe2 {[%clk 0:00:12]} 30...
Qf4 {[%clk 0:00:42.9]} 31. Nf2 {[%clk 0:00:11.5]} 31... Qe3 {[%clk 0:00:41.3]}
32. Qxe3 {[%clk 0:00:11.7]} 32... Bxe3 {[%clk 0:00:42.2]} 33. Ng4 {[%clk
0:00:12]} 33... Bf4 {[%clk 0:00:40.7]} 34. c3 {[%clk 0:00:10.6]} 34... Bd3
{[%clk 0:00:39.5]} 35. Bd1 {[%clk 0:00:10.5]} 35... Bf1 {[%clk 0:00:39.3]} 36.
Nf2 {[%clk 0:00:07.6]} 36... Bxg2 {[%clk 0:00:39.6]} 37. Be2 {[%clk 0:00:08.2]}
37... Bg3 {[%clk 0:00:39.7]} 38. Ne4 {[%clk 0:00:08.6]} 38... Bxh3 {[%clk
0:00:39.8]} 39. Ng5 {[%clk 0:00:07.9]} 39... Bf5 {[%clk 0:00:38.6]} 40. Nxf7
{[%clk 0:00:08.2]} 40... h3 {[%clk 0:00:39.1]} 41. Bf1 {[%clk 0:00:06.4]} 41...
Bf4 {[%clk 0:00:36]} 42. Kb3 {[%clk 0:00:04.2]} 42... Kc7 {[%clk 0:00:36.4]} 43.
Kc4 {[%clk 0:00:04.8]} 43... e5 {[%clk 0:00:33.4]} 44. Kc5 {[%clk 0:00:03.3]}
44... b6+ {[%clk 0:00:33.4]} 45. Kc4 {[%clk 0:00:03.8]} 0-1